[Event "LTU-chT 2019"]
[Site "Lithuania"]
[Date "2019.01.26"]
[Round "1"]
[White "Vaznonis, Vytautas"]
[Black "Paulauskas, Andrius"]
[Result "1-0"]
[ECO "D11"]
[WhiteElo "2388"]
[BlackElo "1867"]
[Annotator "NA"]
[PlyCount "97"]
[EventDate "2019.01.26"]
[EventType "team-tourn"]
[EventCountry "LTU"]
[SourceTitle "playchess.com"]
[Source "ChessBase"]
[SourceQuality "1"]
[TimeControl "40/5400+30:1800+30"]

1. d4 {[%emt 0:00:00]} d5 {[%emt 0:01:35]} 2. c4 {[%emt 0:01:03]} c6 {[%emt 0:00:08]} 3. Nf3 {[%emt 0:00:06]} Nf6 {[%emt 0:00:06]} 4. e3 {[%emt 0:00:45]} Nbd7 {[%emt 0:00:11]} 5. Bd3 {[%emt 0:01:22]} e6 {[%emt 0:00:28]} 6. Nbd2 {[%emt 0:01:48]} Bd6 {[%emt 0:00:28]} 7. O-O {[%emt 0:00:13]} O-O {[%emt 0:00:33]} 8. e4 {[%emt 0:00:09]} dxe4 {[%emt 0:01:07]} 9. Nxe4 {[%emt 0:00:07]} Nxe4 {[%emt 0:00:32]} 10. Bxe4 {[%emt 0:00:08]} h6 {[%emt 0:02:48]} 11. Bc2 {[%emt 0:05:35]} e5 {[%emt 0:01:12]} 12. Re1 {[%emt 0:14:30]} exd4 {[%emt 0:03:21]} 13. Qxd4 {[%emt 0:00:47]} Nf6 {[%emt 0:07:39]} 14. Qc3 {[%emt 0:20:45]} (14. Rd1 $16 Bc7 15. Qh4) 14... Be6 $14 {[%emt 0:07:40]} 15. Be3 {[%emt 0:14:09]} Qe7 {[%emt 0:05:43]} 16. c5 {[%emt 0:09:47]} Bc7 {[%emt 0:01:19]} 17. Nd4 {[%emt 0:00:47]} Be5 {[%emt 0:04:45]} 18. f4 {[%emt 0:03:43]} Bxd4 {[%emt 0:04:20]} 19. Bxd4 {[%emt 0:00:38]} Nd5 {[%emt 0:01:34]} 20. Qg3 {[%emt 0:01:21]} Nf6 {[%emt 0:04:26]} 21. f5 {[%emt 0:00:32]} Qd8 {[%emt 0:00:56]} 22. Bxf6 {[%emt 0:00:41]} Qxf6 {[%emt 0:00:04]} 23. fxe6 {[%emt 0:00:29]} fxe6 {[%emt 0:00:53]} 24. Qd3 {[%emt 0:02:07]} Qf2+ {[%emt 0:01:26]} 25. Kh1 {[%emt 0:00:07]} Rf5 {[%emt 0:03:45]} 26. Rf1 {[%emt 0:02:33]} Qxc5 {[%emt 0:00:34]} 27. Rxf5 {[%emt 0:01:39]} exf5 {[%emt 0:00:06]} 28. Qxf5 {[%emt 0:00:24]} Qxf5 {[%emt 0:00:12]} 29. Bxf5 {[%emt 0:00:06]} Rd8 {[%emt 0:00:33]} 30. h4 {[%emt 0:00:20]} g5 {[%emt 0:01:09]} 31. hxg5 {[%emt 0:00:25]} hxg5 {[%emt 0:00:05]} 32. Be6+ {[%emt 0:01:01]} Kg7 {[%emt 0:00:40]} 33. Rf1 {[%emt 0:00:20]} Re8 {[%emt 0:02:50]} 34. Rf7+ {[%emt 0:00:22]} Kg6 {[%emt 0:00:07]} 35. Bb3 {[%emt 0:00:13]} Kh5 {[%emt 0:02:09]} 36. Rxb7 {[%emt 0:01:29]} Kg4 {[%emt 0:00:18]} 37. Kh2 {[%emt 0:02:50]} Rh8+ {[%emt 0:00:24]} 38. Kg1 {[%emt 0:00:10]} Re8 {[%emt 0:01:38]} 39. Bd1+ {[%emt 0:01:05]} Kg3 {[%emt 0:00:41]} 40. Rb3+ {[%emt 0:00:18]} Kf4 {[%emt 0:00:05]} 41. Kf2 {[%emt 0:31:26]} Rd8 {[%emt 0:30:18]} 42. Rf3+ {[%emt 0:00:34]} Ke5 {[%emt 0:00:16]} 43. Re3+ {[%emt 0:00:33]} Kd4 {[%emt 0:00:09]} 44. Bf3 {[%emt 0:00:33]} c5 {[%emt 0:00:26]} 45. Re4+ {[%emt 0:00:25]} Kd3 {[%emt 0:00:09]} 46. b3 {[%emt 0:00:26]} Rf8 {[%emt 0:01:04]} 47. Rc4 {[%emt 0:00:52]} Rf5 {[%emt 0:00:05]} 48. Kg3 {[%emt 0:00:24]} Re5 {[%emt 0:00:06]} 49. Kg4 {[%emt 0:00:13]} 1-0

[Event "LTU-chT 2019"]
[Site "Lithuania"]
[Date "2019.01.26"]
[Round "1"]
[White "Salna, Aleksandras"]
[Black "Kazakovskiy, Valeriy"]
[Result "0-1"]
[ECO "A45"]
[WhiteElo "1955"]
[BlackElo "2456"]
[Annotator "ChessBase"]
[PlyCount "70"]
[EventDate "2019.01.26"]
[EventType "team-tourn"]
[EventCountry "LTU"]
[SourceTitle "playchess.com"]
[Source "ChessBase"]
[SourceQuality "1"]
[TimeControl "40/5400+30:1800+30"]

1. d4 {[%emt 0:00:00]} Nf6 {[%emt 0:00:00]} 2. Bf4 {[%emt 0:00:25]} e6 {[%emt 0:00:07]} 3. e3 {[%emt 0:00:25]} b6 {[%emt 0:00:23]} 4. Nf3 {[%emt 0:01:23]} Be7 {[%emt 0:00:22]} 5. h3 {[%emt 0:00:34]} O-O {[%emt 0:00:21]} 6. Bd3 {[%emt 0:01:00]} c5 {[%emt 0:00:16]} 7. c3 {[%emt 0:00:11]} cxd4 {[%emt 0:00:25]} 8. cxd4 {[%emt 0:01:50]} Nd5 {[%emt 0:12:06]} 9. O-O {[%emt 0:02:47]} Nxf4 {[%emt 0:01:05]} 10. exf4 {[%emt 0:00:07]} Bb7 {[%emt 0:03:30]} 11. Nc3 {[%emt 0:02:12]} Nc6 {[%emt 0:03:14]} 12. a3 {[%emt 0:02:38]} Bf6 {[%emt 0:09:58]} 13. d5 {[%emt 0:03:29]} Ne7 {[%emt 0:04:37]} 14. d6 {[%emt 0:12:32]} Nd5 {[%emt 0:11:16]} 15. Nxd5 {[%emt 0:03:54]} Bxd5 {[%emt 0:00:17]} 16. Rc1 {[%emt 0:04:02]} g6 {[%emt 0:04:53]} 17. Qe2 {[%emt 0:10:16]} Bxf3 {[%emt 0:10:24]} 18. gxf3 {[%emt 0:00:34]} Rc8 {[%emt 0:03:43]} 19. Ba6 {[%emt 0:17:45]} Rc6 {[%emt 0:07:01]} 20. Rfd1 {[%emt 0:01:29]} Qa8 {[%emt 0:02:16]} 21. Qe4 {[%emt 0:04:52]} Bxb2 {[%emt 0:01:30]} 22. Rxc6 {[%emt 0:00:11]} Qxc6 {[%emt 0:00:59]} 23. Qxc6 {[%emt 0:00:16]} dxc6 {[%emt 0:00:02]} 24. a4 {[%emt 0:00:31]} Rd8 {[%emt 0:01:33]} 25. Bb7 {[%emt 0:01:19]} c5 {[%emt 0:01:09]} 26. Ba6 {[%emt 0:00:05]} Bd4 {[%emt 0:00:11]} 27. f5 {[%emt 0:02:09]} gxf5 {[%emt 0:00:31]} 28. Kf1 {[%emt 0:00:07]} Rxd6 {[%emt 0:00:23]} 29. Ke2 {[%emt 0:00:07]} Rd8 {[%emt 0:00:50]} 30. Rb1 {[%emt 0:00:25]} Kg7 {[%emt 0:00:27]} 31. Bd3 {[%emt 0:00:38]} Bxf2 {[%emt 0:00:24]} 32. Bxf5 {[%emt 0:00:17]} exf5 {[%emt 0:00:29]} 33. Kxf2 {[%emt 0:00:04]} Kf6 {[%emt 0:01:11]} 34. a5 {[%emt 0:00:14]} Rd6 {[%emt 0:00:07]} 35. a6 {[%emt 0:00:26]} Rd2+ {[%emt 0:00:07]} 0-1

[Event "LTU-chT 2019"]
[Site "Lithuania"]
[Date "2019.01.26"]
[Round "1"]
[White "Boyajyan, David"]
[Black "Pilipuitis, Mantas"]
[Result "*"]
[ECO "D91"]
[WhiteElo "1890"]
[BlackElo "1825"]
[Annotator "NA RC"]
[PlyCount "22"]
[EventDate "2019.01.26"]
[EventType "team-tourn"]
[EventCountry "LTU"]
[SourceTitle "playchess.com"]
[Source "ChessBase"]
[SourceQuality "1"]
[TimeControl "40/5400+30:1800+30"]

1. d4 {[%emt 0:00:00]} Nf6 {[%emt 0:00:00]} 2. c4 {[%emt 0:00:00]} g6 {[%emt 0:00:00]} 3. Nc3 {[%emt 0:00:13]} d5 {[%emt 0:00:04]} 4. Nf3 {[%emt 0:02:20]} Bg7 {[%emt 0:00:12]} 5. Bg5 {[%emt 0:00:06]} Ne4 {[%emt 0:00:23]} 6. cxd5 {[%emt 0:00:11]} Nxg5 {[%emt 0:00:16]} 7. Nxg5 {[%emt 0:00:02]} e6 {[%emt 0:00:21]} 8. Nf3 {[%emt 0:00:03]} exd5 {[%emt 0:00:08]} 9. e3 {[%emt 0:00:29]} O-O {[%emt 0:00:47]} 10. Bd3 {[%emt 0:00:05]} Be6 {[%emt 0:04:07]} 11. O-O {[%emt 0:01:26]} Nd7 {[%emt 0:00:54]} *

[Event "LTU-chT 2019"]
[Site "Lithuania"]
[Date "2019.01.26"]
[Round "1"]
[White "Vardanyan, Aras"]
[Black "Juksta, Karolis"]
[Result "1-0"]
[ECO "D35"]
[WhiteElo "1884"]
[BlackElo "2285"]
[Annotator "NA"]
[PlyCount "85"]
[EventDate "2019.01.26"]
[EventType "team-tourn"]
[EventCountry "LTU"]
[SourceTitle "playchess.com"]
[Source "ChessBase"]
[SourceQuality "1"]
[TimeControl "40/5400+30:1800+30"]

1. d4 {[%emt 0:00:00]} e6 {[%emt 0:00:00]} 2. c4 {[%emt 0:00:07]} d5 {[%emt 0:02:49]} 3. Nc3 {[%emt 0:00:39]} Nf6 {[%emt 0:00:06]} 4. cxd5 {[%emt 0:00:19]} exd5 {[%emt 0:00:06]} 5. Bg5 {[%emt 0:00:06]} Nbd7 {[%emt 0:00:10]} 6. e3 {[%emt 0:00:48]} c6 {[%emt 0:00:06]} 7. Bd3 {[%emt 0:00:11]} h6 {[%emt 0:00:10]} 8. Bf4 {[%emt 0:01:48]} Nb6 {[%emt 0:00:20]} 9. Nge2 {[%emt 0:01:40]} Bd6 {[%emt 0:00:30]} 10. O-O {[%emt 0:00:49]} O-O {[%emt 0:00:16]} 11. Qd2 {[%emt 0:05:30]} Be6 {[%emt 0:01:45]} 12. f3 {[%emt 0:02:29]} Bxf4 {[%emt 0:19:41]} 13. Nxf4 {[%emt 0:04:04]} Qd6 {[%emt 0:00:44]} 14. Qf2 {[%emt 0:09:18]} Rfe8 {[%emt 0:02:12]} 15. Qg3 {[%emt 0:10:04]} Rad8 {[%emt 0:01:27]} 16. Rae1 {[%emt 0:00:29]} a6 $14 {[%emt 0:10:30]} 17. a3 {[%emt 0:03:49]} Nc8 {[%emt 0:03:04]} 18. Na4 {[%emt 0:04:47]} Ne7 {[%emt 0:20:26]} 19. Nxe6 {[%emt 0:04:54]} Qxe6 {[%emt 0:00:39]} 20. Nc5 {[%emt 0:00:46]} Qc8 {[%emt 0:00:13]} 21. e4 {[%emt 0:02:03]} Nd7 {[%emt 0:14:26]} 22. b4 {[%emt 0:07:58]} Nxc5 {[%emt 0:01:13]} 23. dxc5 {[%emt 0:02:40]} dxe4 {[%emt 0:01:43]} 24. fxe4 {[%emt 0:00:57]} Ng6 {[%emt 0:06:59]} 25. e5 {[%emt 0:05:23]} Nxe5 {[%emt 0:01:37]} 26. Bxa6 {[%emt 0:00:21]} f6 {[%emt 0:06:54]} 27. Qb3+ {[%emt 0:01:35]} Kh8 {[%emt 0:00:08]} 28. Be2 {[%emt 0:00:05]} Rd2 {[%emt 0:01:06]} 29. Qe3 {[%emt 0:04:46]} Red8 {[%emt 0:01:40]} 30. Rxf6 {[%emt 0:02:44]} gxf6 {[%emt 0:02:19]} 31. Qxh6+ {[%emt 0:00:05]} Kg8 {[%emt 0:00:11]} 32. Bc4+ {[%emt 0:00:05]} R8d5 {[%emt 0:01:44]} 33. Bxd5+ {[%emt 0:03:39]} Rxd5 {[%emt 0:00:01]} 34. Qxf6 {[%emt 0:00:08]} Qg4 {[%emt 0:00:31]} 35. h3 {[%emt 0:00:22]} Qg3 {[%emt 0:00:56]} 36. Rf1 {[%emt 0:01:23]} Qg7 {[%emt 0:00:22]} 37. Qe6+ {[%emt 0:00:08]} Kh7 {[%emt 0:00:11]} 38. Rf5 {[%emt 0:02:14]} Qc7 {[%emt 0:01:08]} 39. Rh5+ {[%emt 0:00:41]} Kg7 {[%emt 0:00:02]} 40. Rg5+ {[%emt 0:00:15]} Kh7 {[%emt 0:00:12]} 41. Rh5+ {[%emt 0:33:10]} Kg7 {[%emt 0:30:02]} 42. Qh6+ {[%emt 0:00:10]} Kg8 {[%emt 0:00:11]} 43. Rg5+ {[%emt 0:00:06]} 1-0

[Event "LTU-chT 2019"]
[Site "Lithuania"]
[Date "2019.01.27"]
[Round "2"]
[White "Bucinskas, Valdas"]
[Black "Bieliauskas, Marius"]
[Result "1/2-1/2"]
[ECO "B32"]
[WhiteElo "2297"]
[BlackElo "2183"]
[Annotator "NA"]
[PlyCount "62"]
[EventDate "2019.01.26"]
[EventType "team-tourn"]
[EventCountry "LTU"]
[SourceTitle "playchess.com"]
[Source "ChessBase"]
[SourceQuality "1"]
[TimeControl "40/5400+30:1800+30"]

{[%evp 8,61,6,14,9,33,33,32,33,21,20,0,35,31,27,42,43,46,51,52,46,44,44,47,44,22,41,32767,32767,32767,32767,32767,33,32767,16,32767,25,4,17,0,32767,32767,-15,0,0,32767,0,0,32767,0,0,0,0,0,0,0]} 1. e4 c5 {[%emt 0:00:09]} 2. Nf3 {[%emt 0:00:00]} Nc6 {[%emt 0:01:19]} 3. d4 {[%emt 0:00:05]} cxd4 {[%emt 0:00:04]} 4. Nxd4 {[%emt 0:00:06]} e5 {[%emt 0:02:18]} 5. Nb5 {[%emt 0:01:04]} d6 {[%emt 0:00:11]} 6. c4 {[%emt 0:01:54]} Be7 {[%emt 0:01:30]} 7. N1c3 {[%emt 0:05:14]} a6 {[%emt 0:01:41]} 8. Na3 {[%emt 0:00:06]} Be6 {[%emt 0:06:01]} 9. Nc2 {[%emt 0:04:12]} Bg5 {[%emt 0:02:12]} 10. Be2 {[%emt 0:05:31]} Bxc1 {[%emt 0:01:13]} 11. Rxc1 {[%emt 0:00:06]} Nf6 {[%emt 0:00:15]} 12. O-O {[%emt 0:00:14]} Rc8 {[%emt 0:01:10]} 13. Qd2 {[%emt 0:02:04]} O-O {[%emt 0:02:34]} 14. Rfd1 {[%emt 0:01:03] B32: Sicilian: Löwenthal and Kalashnikov Variations} Qb6 {[%emt 0:02:14]} 15. b3 {[%emt 0:09:05]} Rfd8 {[%emt 0:03:11]} 16. Qe3 {[%emt 0:04:46] LiveBook: 3 Games} Qxe3 {[%emt 0:03:40]} 17. Nxe3 {[%emt 0:00:08]} Nd4 {[%emt 0:00:58] [#]} 18. Bf1 $146 {[%emt 0:06:37]} ({Predecessor:} 18. Kf1 Kf8 19. Nc2 Nxc2 20. Rxc2 Ke7 21. Rcc1 Rc6 22. f3 Rdc8 {½-½ (47) Svetushkin,D (2588)-Bacrot,E (2705) Calvi 2013}) 18... Kf8 {[%emt 0:00:56]} 19. f3 {[%emt 0:05:41]} Ke7 {[%emt 0:05:46]} 20. Nc2 {[%emt 0:02:31]} Nxc2 {[%emt 0:02:29]} 21. Rxc2 {[%emt 0:00:07]} Rc6 {[%emt 0:01:20]} 22. a4 {[%emt 0:14:39]} a5 {[%emt 0:15:46]} 23. h4 {[%emt 0:08:45]} Nd7 {[%emt 0:02:09]} 24. g3 {[%emt 0:03:23]} Nc5 {[%emt 0:01:26]} 25. Rb2 {[%emt 0:00:56]} g6 {[%emt 0:04:43]} 26. Kh2 {[%emt 0:01:04]} Rb6 {[%emt 0:03:01]} 27. Nb5 {[%emt 0:02:12]} f5 {[%emt 0:03:05]} 28. Bd3 {[%emt 0:03:44]} Rf8 {[%emt 0:05:41]} 29. exf5 {[%emt 0:03:05]} gxf5 {[%emt 0:04:04]} 30. Bc2 {[%emt 0:00:09]} h6 {[%emt 0:06:55]} 31. Rbb1 $11 {[%emt 0:00:45]} Rd8 {[%emt 0:02:03]} 1/2-1/2

[Event "LTU-chT 2019"]
[Site "Lithuania"]
[Date "2019.01.27"]
[Round "2"]
[White "Juksta, Karolis"]
[Black "Martinkus, Rolandas"]
[Result "1-0"]
[ECO "D35"]
[WhiteElo "2285"]
[BlackElo "2185"]
[Annotator "ChessBase"]
[PlyCount "151"]
[EventDate "2019.01.26"]
[EventType "team-tourn"]
[EventCountry "LTU"]
[SourceTitle "playchess.com"]
[Source "ChessBase"]
[SourceQuality "1"]
[TimeControl "40/5400+30:1800+30"]

1. d4 {[%emt 0:00:00]} Nf6 {[%emt 0:00:00]} 2. c4 {[%emt 0:00:00]} e6 {[%emt 0:00:00]} 3. Nc3 {[%emt 0:00:00]} d5 {[%emt 0:00:05]} 4. cxd5 {[%emt 0:01:46]} exd5 {[%emt 0:00:11]} 5. Bg5 {[%emt 0:00:05]} Bb4 {[%emt 0:00:10]} 6. a3 {[%emt 0:01:16]} Bxc3+ {[%emt 0:03:25]} 7. bxc3 {[%emt 0:00:02]} c6 {[%emt 0:00:28]} 8. e3 {[%emt 0:00:19]} Qa5 {[%emt 0:00:49]} 9. Ne2 {[%emt 0:03:53]} Ne4 {[%emt 0:00:52]} 10. Bf4 {[%emt 0:03:36]} b6 {[%emt 0:02:51]} 11. Qb3 {[%emt 0:04:57]} Ba6 {[%emt 0:01:26]} 12. Qb4 {[%emt 0:07:12]} Qxb4 {[%emt 0:00:52]} 13. cxb4 {[%emt 0:00:14]} Bc4 {[%emt 0:00:24]} 14. f3 {[%emt 0:00:37]} Nf6 {[%emt 0:00:36]} 15. g4 {[%emt 0:00:45]} Nfd7 {[%emt 0:01:23]} 16. Bg2 {[%emt 0:02:07]} b5 {[%emt 0:02:56]} 17. Nc3 {[%emt 0:21:28]} a5 {[%emt 0:05:35]} 18. Kd2 {[%emt 0:06:32]} Ke7 {[%emt 0:05:43]} 19. e4 {[%emt 0:01:15]} Nf8 {[%emt 0:05:05]} 20. Be3 {[%emt 0:10:09]} Ne6 {[%emt 0:01:38]} 21. Rhe1 {[%emt 0:03:29]} Rd8 {[%emt 0:02:03]} 22. e5 {[%emt 0:05:06]} Rd7 {[%emt 0:01:12]} 23. f4 {[%emt 0:00:24]} Rda7 {[%emt 0:00:39]} 24. Rac1 {[%emt 0:05:54]} axb4 {[%emt 0:06:43]} 25. axb4 {[%emt 0:00:01]} Nd7 {[%emt 0:01:35]} 26. f5 {[%emt 0:04:46]} Nef8 {[%emt 0:00:24]} 27. h4 {[%emt 0:07:18]} Nb6 {[%emt 0:01:16]} 28. Bh3 {[%emt 0:00:02]} Ke8 {[%emt 0:04:40]} 29. h5 {[%emt 0:02:03]} Na4 {[%emt 0:01:48]} 30. Nd1 {[%emt 0:05:29]} Nb6 {[%emt 0:05:45]} 31. Nc3 {[%emt 0:00:01]} Ra3 {[%emt 0:01:46]} 32. h6 {[%emt 0:01:14]} gxh6 {[%emt 0:00:57]} 33. Bxh6 {[%emt 0:00:02]} Na4 {[%emt 0:01:55]} 34. Re3 {[%emt 0:00:01]} Nxc3 {[%emt 0:07:37]} 35. Rcxc3 {[%emt 0:02:17]} R3a4 {[%emt 0:00:20]} 36. e6 {[%emt 0:01:12]} fxe6 {[%emt 0:00:49]} 37. fxe6 {[%emt 0:01:44]} Rxb4 {[%emt 0:02:48]} 38. g5 {[%emt 0:00:11]} Ng6 {[%emt 0:01:01]} 39. Bf5 {[%emt 0:00:45]} Rb2+ {[%emt 0:01:14]} 40. Rc2 {[%emt 0:00:49]} Rxc2+ {[%emt 0:01:25]} 41. Bxc2 {[%emt 0:02:32]} b4 {[%emt 0:01:03]} 42. Rf3 {[%emt 0:09:24]} Ra1 {[%emt 0:02:54]} 43. Bg7 {[%emt 0:11:15]} Rh1 {[%emt 0:09:04]} 44. Bf6 {[%emt 0:05:47]} Rh2+ {[%emt 0:01:24]} 45. Kc1 {[%emt 0:00:06]} Re2 {[%emt 0:08:18]} 46. e7 {[%emt 0:02:38]} b3 {[%emt 0:12:47]} 47. Bxb3 {[%emt 0:01:53]} Bxb3 {[%emt 0:01:52]} 48. Rxb3 {[%emt 0:00:01]} Kf7 {[%emt 0:00:52]} 49. Rb8 {[%emt 0:01:19]} Nxe7 {[%emt 0:03:37]} 50. Rh8 {[%emt 0:00:07]} Nf5 {[%emt 0:09:40]} 51. Rxh7+ {[%emt 0:00:02]} Kg6 {[%emt 0:00:14]} 52. Rc7 {[%emt 0:00:44]} Re6 {[%emt 0:00:23]} 53. Rc8 {[%emt 0:00:55]} Nh4 {[%emt 0:02:05]} 54. Kd2 {[%emt 0:00:42]} Kf5 {[%emt 0:03:02]} 55. Kd3 {[%emt 0:00:15]} Ng6 {[%emt 0:02:31]} 56. Rc7 {[%emt 0:00:34]} Nf4+ {[%emt 0:00:42]} 57. Kc3 {[%emt 0:00:38]} Ke4 {[%emt 0:01:42]} 58. Kb4 {[%emt 0:00:15]} Nh5 {[%emt 0:02:38]} 59. Be5 {[%emt 0:00:24]} Nf4 {[%emt 0:01:28]} 60. Bxf4 {[%emt 0:00:11]} Kxf4 {[%emt 0:00:09]} 61. Kc5 {[%emt 0:00:07]} Rg6 {[%emt 0:00:56]} 62. Rxc6 {[%emt 0:01:21]} Rxg5 {[%emt 0:00:01]} 63. Rd6 {[%emt 0:00:27]} Rh5 {[%emt 0:01:19]} 64. Rxd5 {[%emt 0:00:16]} Rh8 {[%emt 0:01:25]} 65. Rd7 {[%emt 0:00:37]} Ke4 {[%emt 0:00:32]} 66. Re7+ {[%emt 0:00:07]} Kf5 {[%emt 0:00:06]} 67. d5 {[%emt 0:00:06]} Kf6 {[%emt 0:00:45]} 68. d6 {[%emt 0:00:51]} Rh1 {[%emt 0:00:57]} 69. Kc6 {[%emt 0:00:10]} Rc1+ {[%emt 0:00:25]} 70. Kb7 {[%emt 0:00:53]} Rd1 {[%emt 0:00:48]} 71. Kc7 {[%emt 0:00:00]} Rc1+ {[%emt 0:00:11]} 72. Kd8 {[%emt 0:00:26]} Ra1 {[%emt 0:00:23]} 73. Re2 {[%emt 0:00:28]} Ra8+ {[%emt 0:00:38]} 74. Kc7 {[%emt 0:00:01]} Ra7+ {[%emt 0:00:21]} 75. Kb6 {[%emt 0:00:03]} Ra1 {[%emt 0:00:14]} 76. d7 {[%emt 0:00:12]} 1-0

[Event "LTU-chT 2019"]
[Site "Lithuania"]
[Date "2019.01.27"]
[Round "2"]
[White "Mickevicius, Juras"]
[Black "Tvarijonas, Tomas"]
[Result "1-0"]
[ECO "D11"]
[WhiteElo "2273"]
[BlackElo "2248"]
[Annotator "NA"]
[PlyCount "77"]
[EventDate "2019.01.26"]
[EventType "team-tourn"]
[EventCountry "LTU"]
[SourceTitle "playchess.com"]
[Source "ChessBase"]
[SourceQuality "1"]
[TimeControl "40/5400+30:1800+30"]

{[%evp 9,74,11,27,16,37,27,31,25,51,0,8,0,14,11,14,2,31,17,41,32767,32767,32767,45,45,84,80,110,113,162,187,203,210,223,213,32767,32767,32767,212,32767,189,307,312,321,32767,32767,32767,32767,465,32767,310,470,32767,32767,32767,32767,32767,32767,675,32767,825,32767,765,790,843,788,1111,963]} 1. d4 {[%emt 0:00:00]} d5 {[%emt 0:00:00]} 2. c4 {[%emt 0:00:00]} c6 {[%emt 0:00:00]} 3. Nf3 {[%emt 0:00:00]} Nf6 {[%emt 0:00:00]} 4. e3 {[%emt 0:00:00]} e6 {[%emt 0:00:00]} 5. b3 {[%emt 0:00:18]} Nbd7 {[%emt 0:00:00] D30: Queen's Gambit Declined: Systems without Nc3} 6. Bb2 {[%emt 0:00:49]} Ne4 {[%emt 0:05:15]} 7. Bd3 {[%emt 0:00:42]} f5 {[%emt 0:01:33]} 8. O-O {[%emt 0:00:17]} Bd6 {[%emt 0:00:47]} 9. Ba3 {[%emt 0:01:06]} Bxa3 {[%emt 0:04:49] LiveBook: 8 Games} 10. Nxa3 {[%emt 0:00:15]} Qe7 {[%emt 0:00:06]} 11. Qc1 {[%emt 0:04:40]} O-O {[%emt 0:01:41]} 12. Qb2 {[%emt 0:04:04]} a6 $146 {[%emt 0:08:31]} ({Predecessor:} 12... b6 13. Rac1 Bb7 14. Rfd1 Rf6 15. Nb1 Rh6 16. Nbd2 g5 {0-1 (34) Khademalsharieh,S (2431)-Sumets,A (2575) Cap d'Agde 2018}) 13. Nc2 {[%emt 0:03:10]} b5 {[%emt 0:07:58]} 14. cxd5 {[%emt 0:14:46]} cxd5 {[%emt 0:05:29]} 15. a4 {[%emt 0:09:02]} b4 {[%emt 0:11:42]} 16. a5 {[%emt 0:00:09]} Qd6 {[%emt 0:02:17]} 17. Ne5 {[%emt 0:07:58]} Rb8 {[%emt 0:08:22]} 18. Rfc1 {[%emt 0:02:09]} Rb7 {[%emt 0:13:38]} 19. f3 {[%emt 0:06:52]} Nef6 {[%emt 0:00:45]} 20. Ne1 {[%emt 0:00:45]} Nb8 {[%emt 0:00:29]} 21. Bf1 {[%emt 0:00:45]} Nfd7 {[%emt 0:09:05]} 22. N1d3 {[%emt 0:00:39]} Nxe5 {[%emt 0:01:34]} 23. Nxe5 {[%emt 0:03:28]} ({Resist} 23. dxe5 $6 Qe7 $16) 23... Bd7 {[%emt 0:03:32]} 24. Rc5 {[%emt 0:01:23]} Bb5 {[%emt 0:05:24]} (24... Rc8 {was worth a try.}) 25. Bxb5 {[%emt 0:08:02]} Rxb5 {[%emt 0:00:02]} 26. Rxb5 {[%emt 0:01:57]} axb5 {[%emt 0:00:02]} 27. Qc2 {[%emt 0:01:22]} Qa6 {[%emt 0:03:54]} 28. Qc5 {[%emt 0:00:48]} Rc8 {[%emt 0:00:13]} 29. Qxb4 {[%emt 0:00:23]} (29. Qe7 $142) 29... h6 {[%emt 0:02:24]} (29... Rc7 {was worth a try.} 30. Nd3 Kf7) 30. h4 {[%emt 0:02:06]} Rc2 {[%emt 0:02:38]} 31. h5 {[%emt 0:03:48]} Nc6 {[%emt 0:01:55]} 32. Qd6 {[%emt 0:00:15]} Qc8 {[%emt 0:00:02]} 33. Ng6 {[%emt 0:02:17]} Kh7 {[%emt 0:01:01]} 34. Nf8+ {[%emt 0:02:09]} Kh8 {[%emt 0:00:28]} 35. Nxe6 {[%emt 0:00:14]} Na7 {[%emt 0:00:58]} 36. Qe7 {[%emt 0:00:44]} Qg8 {[%emt 0:00:41]} 37. Nf8 {[%emt 0:01:10]} Nc6 $18 {[%emt 0:00:25]} 38. Ng6+ {[%emt 0:00:04]} Kh7 {[%emt 0:00:02]} 39. Qd7 {[%emt 0:00:11]} 1-0

[Event "LTU-chT 2019"]
[Site "Lithuania"]
[Date "2019.01.27"]
[Round "2"]
[White "Steponavicius, Stasys"]
[Black "Zickus, Simonas"]
[Result "1/2-1/2"]
[ECO "D20"]
[WhiteElo "2194"]
[BlackElo "2330"]
[Annotator "ChessBase"]
[PlyCount "56"]
[EventDate "2019.01.26"]
[EventType "team-tourn"]
[EventCountry "LTU"]
[SourceTitle "playchess.com"]
[Source "ChessBase"]
[SourceQuality "1"]
[TimeControl "40/5400+30:1800+30"]

1. d4 {[%emt 0:00:00]} d5 {[%emt 0:00:00]} 2. c4 {[%emt 0:00:00]} dxc4 {[%emt 0:00:00]} 3. e3 {[%emt 0:00:23]} e5 {[%emt 0:01:27]} 4. Bxc4 {[%emt 0:00:56]} exd4 {[%emt 0:00:05]} 5. exd4 {[%emt 0:00:07]} Nf6 {[%emt 0:00:38]} 6. Qb3 {[%emt 0:01:46]} Qe7+ {[%emt 0:08:37]} 7. Ne2 {[%emt 0:00:13]} Qb4+ {[%emt 0:21:47]} 8. Nbc3 {[%emt 0:00:45]} Qxb3 {[%emt 0:00:05]} 9. axb3 {[%emt 0:00:08]} c6 {[%emt 0:01:11]} 10. Bf4 {[%emt 0:07:35]} b5 {[%emt 0:12:43]} 11. Bd3 {[%emt 0:02:30]} Be6 {[%emt 0:09:14]} 12. O-O {[%emt 0:09:43]} Bb4 {[%emt 0:05:28]} 13. Ne4 {[%emt 0:09:07]} a5 {[%emt 0:04:12]} 14. Nxf6+ {[%emt 0:03:32]} gxf6 {[%emt 0:00:01]} 15. Be4 {[%emt 0:00:25]} Bxb3 {[%emt 0:12:23]} 16. Bxb8 {[%emt 0:12:30]} Rxb8 {[%emt 0:00:02]} 17. Bxc6+ {[%emt 0:00:15]} Ke7 {[%emt 0:00:35]} 18. Ng3 {[%emt 0:09:28]} Rhd8 {[%emt 0:03:24]} 19. Be4 {[%emt 0:05:02]} Kf8 {[%emt 0:03:54]} 20. Nf5 {[%emt 0:01:06]} a4 {[%emt 0:03:27]} 21. Rfc1 {[%emt 0:03:39]} Rdc8 {[%emt 0:04:46]} 22. Bd3 {[%emt 0:02:41]} Bd2 {[%emt 0:00:44]} 23. Rxc8+ {[%emt 0:26:24]} Rxc8 {[%emt 0:00:00]} 24. Bxb5 {[%emt 0:00:11]} Bc1 {[%emt 0:05:23]} 25. Rb1 {[%emt 0:01:21]} Ba2 {[%emt 0:01:30]} 26. Ra1 {[%emt 0:01:01]} Bb3 {[%emt 0:00:02]} 27. Rb1 {[%emt 0:00:08]} Ba2 {[%emt 0:00:03]} 28. Ra1 {[%emt 0:00:23]} Bb3 {[%emt 0:01:38]} 1/2-1/2